bitfinex/quotes_ETHUSD_20250724
["timestamp","ask_amount","ask_price","bid_price","bid_amount"]
[1753364104043,0.0682,3655.0,3654.1,0.4895]
[1753364104241,0.566,3655.6,3654.1,0.9504]
[1753364104401,0.566,3655.6,3654.4,3.55]
[1753364104597,0.04,3655.9,3654.7,0.786]
[1753364104810,0.04,3655.9,3655.8,5.73537939]
[1753364105038,0.1408,3657.1,3656.8,2.73463137]
[1753364105238,0.004,3657.1,3656.8,8.82043137]
[1753364105440,0.004,3657.1,3656.8,4.7598]
[1753364105602,0.004,3657.1,3656.8,7.56332821]
[1753364105798,0.004,3657.1,3656.8,7.70012821]
[1753364106136,1e-08,3657.1,3657.0,3.28448181]
[1753364106337,1e-08,3657.1,3657.0,6.28448181]
[1753364106541,1e-08,3657.1,3657.0,6.91078181]
[1753364106743,1e-08,3657.1,3657.0,5.87128181]
[1753364107212,0.04,3658.9,3657.1,2.73440704]
[1753364107429,0.0682,3658.6,3657.2,0.55]
[1753364107614,0.0682,3658.6,3658.2,2.73358482]
[1753364107851,1e-08,3658.3,3658.2,10.38158482]
[1753364108008,1e-08,3658.3,3658.2,10.93158482]
[1753364108200,1e-08,3658.3,3658.2,11.88198482]
[1753364108401,1e-08,3658.3,3658.2,11.33398482]
[1753364108828,1e-08,3658.3,3658.2,11.88398482]
[1753364109617,1e-08,3658.9,3658.8,3.28313654]
[1753364109819,1e-08,3659.9,3658.9,0.55]
[1753364110020,1e-08,3659.9,3659.8,2.73238974]
[1753364110208,1e-08,3659.9,3659.8,7.40767533]
[1753364110535,1e-08,3659.9,3659.8,7.87688974]
[1753364110734,1e-08,3659.9,3659.8,8.53821522]
[1753364110906,1e-08,3659.9,3659.8,0.20042548]
[1753364111102,1e-08,3659.9,3659.8,4.655]
[1753364111306,1e-08,3659.9,3659.8,7.59153213]
[1753364111618,0.0682,3659.8,3659.4,4.656]
[1753364111818,0.02069997,3659.7,3659.4,4.656]
[1753364112019,0.4978,3659.7,3659.4,4.656]
[1753364112219,2.80059662,3659.8,3659.4,4.656]
[1753364112220,0.0682,3659.8,3659.4,4.656]
[1753364112524,1e-08,3659.9,3659.4,4.656]
[1753364112720,0.4978,3659.8,3659.0,6.573]
[1753364112920,2.73246992,3659.7,3659.0,6.573]
[1753364113122,0.7432,3659.8,3659.1,4.664]
[1753364113442,2.73233126,3659.9,3659.1,7.42417821]
[1753364113644,1e-08,3659.9,3659.4,2.73268841]
[1753364113848,1e-08,3659.9,3659.5,4.663]
[1753364114009,1e-08,3659.9,3659.6,0.02732539]
[1753364114206,1e-08,3659.9,3659.5,4.663]
[1753364114443,2.73253907,3659.6,3659.5,4.663]
[1753364114629,2.73291246,3659.1,3659.0,6.573]
[1753364114831,0.4725,3659.1,3657.3,7.0575]
[1753364115030,3.70324085,3659.1,3657.8,2.73382623]
[1753364115256,2.73306184,3658.9,3657.9,4.669]
[1753364115408,0.4978,3658.8,3658.0,4.669]
[1753364115615,0.4725,3659.0,3658.1,0.02733659]
[1753364115808,0.9703,3659.0,3657.3,6.7698304]
[1753364116049,3.0,3659.1,3657.4,4.668]
[1753364116050,0.9703,3658.9,3657.4,4.668]
[1753364116208,2.73345859,3658.4,3657.5,2.734102]
[1753364116407,0.4978,3658.4,3657.4,4.668]
[1753364116622,2.73360334,3658.2,3657.4,4.668]
[1753364116921,2.73351186,3658.3,3657.4,4.668]
[1753364117243,3.23129474,3658.4,3658.0,0.1368]
[1753364117447,0.1368,3658.5,3658.0,0.1368]
[1753364117448,0.9703,3658.3,3658.0,0.1368]
[1753364117746,0.9703,3658.3,3657.1,0.04]
[1753364117747,2.73433227,3657.2,3657.1,0.04]
[1753364118046,0.1368,3657.4,3657.1,0.04]
[1753364118251,2.73433227,3657.2,3657.1,0.04]
[1753364118611,0.1368,3657.4,3657.1,0.04]
[1753364118836,2.73433227,3657.2,3657.1,0.04]
[1753364119071,6.72533224,3657.2,3657.1,0.04]
[1753364119276,7.32283227,3657.2,3657.1,0.04]
[1753364119577,2.73508013,3656.2,3656.0,4.672]
[1753364119877,2.73508013,3656.2,3655.6,0.1368]
[1753364119878,0.1368,3656.2,3655.6,4.8128]
[1753364120082,3.91038013,3656.2,3655.2,4.8118]
[1753364120239,0.4978,3656.7,3655.8,4.675]
[1753364120445,2.7350249,3656.3,3655.8,4.675]
[1753364120638,0.4978,3656.8,3655.8,4.675]
[1753364120882,2.73507414,3656.3,3655.8,4.675]
[1753364121055,0.4978,3657.0,3655.8,4.68]
[1753364121239,3.23230096,3657.0,3655.8,7.41530772]
[1753364121445,2.73469189,3656.8,3656.0,2.73521399]
[1753364121667,0.4978,3657.0,3655.9,2.73529154]
[1753364121978,0.4978,3657.0,3655.8,4.68]
[1753364122276,0.4978,3657.0,3656.1,2.77513548]
[1753364122277,2.73458169,3656.9,3656.1,2.77513548]
[1753364122500,0.51849997,3656.8,3656.1,7.44912695]
[1753364122637,0.0682,3657.1,3656.4,2.73487165]
[1753364122845,3.0,3657.3,3656.4,2.73487165]
[1753364122846,0.4978,3657.5,3656.9,2.73449973]
[1753364123074,0.4978,3658.3,3657.0,0.02734481]
[1753364123376,0.002,3658.2,3657.7,2.73390719]
[1753364123585,0.002,3658.2,3657.9,2.73374981]
[1753364123785,0.002,3658.2,3658.0,0.02733734]
[1753364123996,0.002,3658.2,3657.9,2.73375833]
[1753364124188,0.002,3658.2,3657.6,4.676]
[1753364124392,0.002,3658.2,3657.8,2.73381812]
[1753364124689,0.002,3658.2,3657.6,4.676]
[1753364124990,0.002,3658.2,3657.7,2.73395565]
[1753364125151,0.002,3658.2,3657.6,7.4100271]
[1753364125348,0.002,3658.2,3657.6,4.676]
[1753364125587,0.002,3658.2,3658.1,2.73365955]
[1753364125784,0.002,3658.2,3658.1,7.40565955]
[1753364125985,0.002,3658.2,3658.1,8.32905955]
[1753364126400,0.002,3658.2,3658.1,11.87905955]
[1753364126599,0.002,3658.2,3658.1,11.32905955]
[1753364126797,0.002,3658.2,3658.1,10.89515955]
[1753364127204,0.002,3658.2,3658.1,10.40565955]
[1753364127406,0.002,3658.2,3658.1,10.89515955]
[1753364127770,0.002,3658.2,3658.1,6.22315955]
[1753364128008,0.002,3658.2,3658.1,0.4895]
[1753364128174,0.002,3658.2,3658.1,8.87205955]
[1753364128175,1e-08,3658.2,3658.1,8.87205955]
[1753364128503,1e-08,3658.2,3658.1,11.87205955]
[1753364128811,1e-08,3658.2,3658.1,12.67715955]
[1753364129029,0.06820001,3659.9,3658.1,12.67715955]
[1753364129030,1e-08,3659.9,3658.2,3.55]
[1753364129180,1e-08,3659.9,3659.4,3.56018841]
[1753364129706,1e-08,3659.9,3659.4,8.69928841]
[1753364129915,1e-08,3659.9,3659.4,4.02728841]
[1753364130112,1e-08,3659.9,3659.4,7.61035649]
[1753364130316,1e-08,3659.9,3659.4,3.07315649]
[1753364130477,1e-08,3659.9,3659.4,9.22448337]
[1753364130678,1e-08,3659.9,3659.4,9.19715649]
[1753364131121,1e-08,3659.9,3659.4,3.07315649]
[1753364131322,0.0682,3659.6,3658.4,0.4671]
[1753364131616,2.73328595,3658.6,3658.5,0.20994724]
[1753364131814,0.9368,3658.6,3657.4,0.8288]
[1753364132033,0.9368,3658.6,3658.0,0.1368]
[1753364132182,0.4865,3658.5,3657.4,0.20625568]
[1753364132377,2.7338571,3657.9,3657.1,0.04]
[1753364132697,2.73433227,3657.2,3657.1,0.04]
[1753364132889,2.93933227,3657.2,3657.1,0.04]
[1753364133079,3.87613227,3657.2,3657.1,0.04]
[1753364133495,6.89683224,3657.2,3657.1,0.04]
[1753364133718,6.87613227,3657.2,3657.1,0.04]
[1753364135192,2.73508013,3656.2,3656.1,0.04]
[1753364135396,2.87188013,3656.2,3656.1,0.04]
[1753364135607,0.1368,3656.2,3656.1,0.04]
[1753364135806,1.0736,3656.2,3656.1,0.04]
[1753364136033,3.87688013,3656.2,3656.1,0.04]
[1753364136347,3.42658013,3656.2,3656.1,0.04]
[1753364136734,3.87688013,3656.2,3656.1,0.04]
[1753364137236,6.87688013,3656.2,3656.1,0.04]
[1753364137844,7.42688013,3656.2,3656.1,0.04]
[1753364138043,5.73545422,3655.7,3655.6,0.001]
[1753364138208,5.87225422,3655.7,3655.6,0.001]
[1753364138404,7.35905422,3655.7,3655.6,0.001]
[1753364138713,6.87255422,3655.7,3655.6,0.001]
[1753364138928,7.35905422,3655.7,3655.6,0.001]
[1753364139134,7.42725422,3655.7,3655.6,1e-08]
[1753364139441,6.87725422,3655.7,3655.6,1e-08]
[1753364139645,6.74045422,3655.7,3655.6,1e-08]
[1753364140658,7.29045422,3655.7,3655.6,1e-08]
[1753364141645,6.74045422,3655.7,3655.6,1e-08]
[1753364141861,4.005,3655.7,3655.6,1e-08]
[1753364142008,0.4865,3656.2,3655.6,1e-08]
[1753364142213,0.4865,3656.2,3655.7,2.7354335]
[1753364142524,0.0682,3656.3,3655.7,2.7354335]
[1753364142525,0.0682,3656.3,3655.7,0.02735454]
[1753364142718,0.0682,3656.9,3655.7,0.49445454]
[1753364142909,0.0682,3656.9,3656.7,2.73463216]
[1753364143105,2.80228527,3657.6,3656.6,0.0273478]
[1753364143359,0.0682,3657.6,3656.4,0.0273493]
[1753364143707,0.0682,3657.6,3656.9,2.73450524]
[1753364143913,2.7341834,3657.4,3656.6,2.73471792]
[1753364144146,0.4865,3657.5,3657.0,2.73448105]
[1753364144449,3.0682,3657.6,3656.9,2.73454249]
[1753364144620,0.0682,3657.6,3656.9,2.73454249]
[1753364144806,0.0682,3657.6,3656.9,2.73455659]
[1753364145006,0.0682,3657.6,3657.0,2.73447254]
[1753364145228,2.73388375,3657.8,3657.1,2.734348]
[1753364145439,0.04,3657.9,3657.5,2.7340996]
[1753364145662,0.04,3657.9,3656.8,0.4671]
[1753364145663,0.04,3657.9,3656.8,1.2183]
[1753364145879,0.04,3657.9,3657.4,2.73414252]
[1753364146046,0.04,3657.9,3656.8,5.8773]
[1753364146864,0.04,3657.9,3657.3,2.73424429]
[1753364147191,0.04,3657.9,3657.5,2.73410246]
[1753364147328,0.04,3657.9,3657.4,2.73416156]
[1753364147535,0.04,3657.9,3656.8,8.61188982]
[1753364147536,0.04,3657.9,3657.1,2.73438592]
[1753364147844,0.5265,3657.9,3656.8,4.659]
[1753364148382,0.04,3657.9,3656.9,0.02734556]
[1753364148532,0.04,3657.9,3657.1,2.73440704]
[1753364148845,0.02069997,3657.8,3656.9,4.647]
[1753364149043,0.02069997,3657.8,3656.6,4.646]
[1753364149044,2.73395849,3657.7,3656.6,4.646]
[1753364149249,3.50719997,3657.6,3656.6,4.646]
[1753364149448,2.73450218,3657.0,3656.6,4.646]
[1753364149651,0.1368,3656.7,3656.1,0.3380812]
[1753364149970,0.0682,3657.1,3656.1,0.3380812]
[1753364149971,0.1368,3656.6,3656.1,0.1378]
[1753364150268,2.73508013,3656.2,3656.1,0.001]
[1753364150454,2.87188013,3656.2,3656.1,0.001]
[1753364150656,3.35838013,3656.2,3656.1,0.001]
[1753364150979,6.9055801,3656.2,3656.1,0.001]
[1753364151195,6.88488013,3656.2,3656.1,1e-08]
[1753364151471,12.08188013,3656.2,3656.1,1e-08]
[1753364152066,2.73605296,3654.9,3654.6,0.001]
[1753364152272,5.73605296,3654.9,3654.6,0.001]
[1753364152579,5.73620269,3654.7,3654.6,1e-08]
[1753364153087,6.81780269,3654.7,3654.6,1e-08]
[1753364153383,2.73620269,3654.7,3654.6,1e-08]
[1753364154096,3.22270269,3654.7,3654.6,1e-08]
[1753364154853,2.73620269,3654.7,3654.6,1e-08]
[1753364155291,0.4865,3655.6,3654.6,0.46710001]
[1753364155504,3.0,3655.2,3654.6,3.20336284]
[1753364155812,3.0,3655.5,3654.6,1e-08]
[1753364155956,3.4865,3655.3,3654.6,1e-08]
[1753364156290,2.73620269,3654.7,3654.6,1e-08]
[1753364157089,2.80440269,3654.7,3654.6,1e-08]
[1753364157470,3.29090269,3654.7,3654.6,1e-08]
[1753364157865,6.76990266,3654.7,3654.6,1e-08]
[1753364158190,6.74920269,3654.7,3654.6,1e-08]
[1753364158567,6.29090269,3654.7,3654.6,1e-08]
[1753364158768,6.27180269,3654.7,3654.6,1e-08]
[1753364158962,5.80440269,3654.7,3654.6,1e-08]
[1753364159578,5.73620269,3654.7,3654.6,1e-08]
[1753364159792,2.73672687,3654.0,3653.9,0.001]
[1753364159992,5.73672687,3654.0,3653.9,0.001]
[1753364160198,6.66242687,3654.0,3653.9,0.001]
[1753364160498,3.0,3654.0,3653.9,0.001]
[1753364160658,2.73672687,3654.0,3653.9,0.8967]
[1753364160854,2.73672687,3654.0,3653.9,0.001]
[1753364161468,2.73725125,3653.3,3653.2,0.001]
[1753364161695,5.75795122,3653.3,3653.2,0.001]
[1753364161896,5.73732617,3653.2,3652.1,0.04]
[1753364162083,5.80552617,3653.2,3652.1,0.04]
[1753364162288,2.73807568,3652.2,3652.1,0.04]
[1753364162488,6.73122617,3653.2,3652.1,0.04]
[1753364162489,0.9939,3653.2,3652.1,0.04]
[1753364162801,2.73807568,3652.2,3652.1,0.04]
[1753364162970,2.73778449,3652.6,3652.1,0.04]
[1753364163171,2.73807568,3652.2,3652.1,0.04]
[1753364163408,2.87487568,3652.2,3652.1,0.04]
[1753364163702,2.89557565,3652.2,3652.1,0.04]
[1753364163862,2.87487568,3652.2,3652.1,0.04]
[1753364164067,2.89557565,3652.2,3652.1,0.04]
[1753364164264,2.73882559,3651.2,3650.4,0.4445]
[1753364164462,5.73882559,3651.2,3651.1,1e-08]
[1753364164685,11.43932559,3651.2,3651.1,1e-08]
[1753364164888,11.98932559,3651.2,3651.1,1e-08]
[1753364165089,12.05752559,3651.2,3651.1,1e-08]
[1753364165410,2.74032664,3649.2,3649.1,0.04]
[1753364165711,0.1368,3649.2,3649.1,0.04]
[1753364166266,2.87712664,3649.2,3649.1,0.04]
[1753364166486,2.89782661,3649.2,3649.1,0.04]
[1753364166699,3.36522661,3649.2,3649.1,0.04]
[1753364166898,0.15749997,3649.2,3649.1,0.04]
[1753364167406,14.5,3651.1,3649.1,0.04]
[1753364167407,2.73942581,3650.4,3649.6,2.74002477]
[1753364167609,7.37842735,3650.4,3649.6,2.74002477]
[1753364167812,0.1368,3649.8,3649.5,3.19129327]
[1753364168016,0.02069997,3650.2,3649.2,2.74032664]
[1753364168164,0.1368,3649.6,3649.3,2.74024027]
[1753364168365,0.02069997,3650.2,3649.1,0.04]
[1753364168604,0.1368,3649.2,3649.1,0.04]
[1753364168911,4.64,3649.9,3649.1,0.4912]
[1753364169111,0.0682,3650.5,3649.2,3.51602664]
[1753364169317,6.6432,3651.8,3649.3,0.8957]
[1753364169611,6.6432,3651.8,3649.1,0.04]
[1753364169612,0.04,3651.9,3650.8,2.73912567]
[1753364169810,0.04,3651.9,3650.9,0.9230905]
[1753364170128,0.04,3651.9,3651.8,2.73837559]
[1753364170488,0.04,3651.9,3651.8,3.63407559]
[1753364170667,3.20435884,3653.7,3652.8,2.73762593]
[1753364170871,2.73708103,3653.6,3652.8,2.73762593]
[1753364171196,0.0682,3653.8,3652.8,3.63332593]
[1753364171394,0.04,3653.9,3652.8,3.66070218]
[1753364171568,0.04,3653.9,3652.8,3.63332593]
[1753364171774,3.0,3653.8,3652.8,3.63332593]
[1753364172068,2.7373326,3653.2,3652.8,0.8957]
[1753364172303,0.02069997,3653.1,3652.4,0.4512]
[1753364172505,2.73702794,3653.6,3652.5,2.73783351]
[1753364172708,2.73702794,3653.6,3652.5,3.63353351]
[1753364172907,2.73741894,3653.1,3652.5,0.4512]
[1753364173213,0.04,3653.9,3652.6,0.8957]
[1753364173214,2.73732632,3653.2,3652.6,0.8957]
[1753364173419,0.04,3653.9,3652.7,0.8957]
[1753364173704,0.4674,3653.6,3652.4,0.4512]
[1753364173868,0.4674,3653.3,3652.0,0.4512]
[1753364174068,0.9257,3653.8,3652.2,2.73801064]
[1753364174268,2.73740756,3653.1,3652.3,3.66107362]
[1753364174475,2.73769813,3652.8,3652.3,0.8957]
[1753364174702,2.73769717,3652.8,3652.4,0.4512]
[1753364174880,0.06069997,3652.9,3651.8,0.7765]
[1753364175213,0.04,3652.9,3651.8,0.7765]
[1753364175417,0.04,3652.9,3651.9,0.027383]
[1753364175575,0.04,3652.9,3652.0,0.4512]
[1753364175780,3.5074,3652.9,3651.7,0.4445]
[1753364175977,0.02069997,3652.8,3651.7,0.4445]
[1753364176184,2.73770087,3652.7,3651.7,0.4445]
[1753364176426,2.73851553,3651.7,3651.5,0.4512]
[1753364176626,2.73858177,3651.6,3651.1,1.2432]
[1753364176780,3.4674,3652.6,3651.2,0.4512]
[1753364176976,0.02069997,3652.5,3651.2,0.8957]
[1753364177320,2.73808262,3652.2,3651.5,2.73852929]
[1753364177481,2.73812681,3652.2,3651.6,0.4512]
[1753364177692,0.04,3652.9,3651.7,0.4445]
[1753364177877,0.04,3652.9,3651.8,0.02738375]
[1753364178105,0.04,3652.9,3651.1,0.7987]
[1753364178106,0.04,3652.9,3651.9,0.8957]
[1753364178298,2.73762593,3652.8,3651.9,0.8957]
[1753364178796,2.73769095,3652.8,3651.9,0.8957]
[1753364178992,2.73799852,3652.4,3651.9,0.8957]
[1753364179203,2.73799852,3652.4,3652.0,0.4512]
[1753364179204,2.73793398,3652.4,3652.0,0.4512]
[1753364179488,2.73776882,3652.7,3652.0,0.4512]
[1753364179688,0.1368,3652.5,3652.0,0.588]
[1753364179920,0.1368,3652.5,3651.5,0.4512]
[1753364180126,2.73809733,3652.2,3651.5,3.32656074]
[1753364180424,2.73822562,3652.0,3651.2,4.632]
[1753364180719,3.20526113,3652.5,3651.2,0.1368]
[1753364180720,0.1368,3651.7,3651.2,0.1368]
[1753364180922,0.1368,3651.7,3651.1,0.7987]
[1753364180923,0.0682,3652.5,3651.3,0.9113875]
[1753364181136,2.73888012,3651.2,3650.7,0.884]
[1753364181287,3.0,3651.9,3650.0,0.884]
[1753364181624,3.0,3651.9,3649.8,0.7738]
[1753364181625,2.73935077,3650.5,3649.4,0.4512]
[1753364181819,2.76005074,3650.5,3649.4,0.4512]
[1753364182030,2.76005074,3650.5,3649.7,0.4512]
[1753364182031,2.73935077,3650.5,3649.7,0.4512]
[1753364182181,3.22745074,3650.5,3649.3,0.7738]
[1753364182617,3.0,3651.0,3649.6,0.4512]
[1753364182828,0.0682,3651.3,3649.4,4.65640176]
[1753364182829,2.73905064,3650.9,3650.0,0.4512]
[1753364183033,2.73905064,3650.9,3649.4,4.629]
[1753364183034,2.73935077,3650.5,3649.6,0.4512]
[1753364183444,2.73935077,3650.5,3649.3,0.7738]
[1753364183445,3.67695077,3650.5,3649.3,0.7738]
[1753364183617,3.67695077,3650.5,3649.1,0.4912]
[1753364184408,2.73935077,3650.5,3649.9,0.4512]
[1753364184610,2.73935077,3650.5,3649.3,2.74024902]
[1753364184810,2.73935077,3650.5,3649.6,0.4512]
[1753364185017,2.73935077,3650.5,3649.8,0.4512]
[1753364185214,3.69765074,3650.5,3649.2,0.4512]
[1753364185456,2.73957591,3650.2,3649.1,0.04]
[1753364185603,5.76027588,3650.2,3649.1,0.04]
[1753364185802,6.20697591,3650.2,3649.1,0.04]
[1753364186006,5.73957591,3650.2,3649.2,0.4512]
[1753364186204,5.73957591,3650.2,3649.6,0.4512]
[1753364186647,3.0,3650.7,3649.6,0.4512]
[1753364186850,3.0,3650.7,3649.6,3.19121125]
[1753364187058,3.0,3650.7,3649.6,0.884]
[1753364187203,2.73957591,3650.2,3649.6,0.884]
[1753364187403,2.76027588,3650.2,3649.6,0.884]
[1753364187645,2.73957591,3650.2,3649.6,0.884]
[1753364187944,2.73948909,3650.4,3650.1,0.041]
[1753364188159,7.624,3650.9,3650.1,0.041]
[1753364188364,2.73951245,3650.3,3650.1,0.041]
[1753364188708,2.73957591,3650.2,3650.1,0.041]
[1753364189452,3.23017591,3650.2,3650.1,0.041]
[1753364189658,3.23017591,3650.2,3649.1,0.04]
[1753364189659,2.74032664,3649.2,3649.1,0.04]
[1753364190108,0.02069997,3649.3,3649.1,0.04]
[1753364190318,5.1056,3650.3,3649.1,0.5102]
[1753364190618,2.74032664,3649.2,3649.1,0.04]
[1753364190820,2.76102661,3649.2,3649.1,0.04]
[1753364191348,3.72182661,3649.2,3649.1,0.04]
[1753364191558,3.85862661,3649.2,3649.1,0.04]
[1753364191729,0.1368,3649.2,3649.1,0.04]
[1753364191926,2.87712664,3649.2,3649.1,0.04]
[1753364192144,3.36772664,3649.2,3649.1,1e-08]
[1753364192468,2.74107779,3648.2,3648.1,0.04]
[1753364192775,7.42427779,3648.2,3648.1,0.04]
[1753364193073,8.52187779,3648.2,3648.1,0.04]
[1753364193274,0.78973305,3648.2,3648.1,0.04]
[1753364193580,7.56007779,3648.2,3648.1,0.04]
[1753364193738,0.72153305,3648.2,3648.1,2.78115292]
[1753364193975,0.58473305,3648.8,3648.3,2.74094679]
[1753364194130,0.58473305,3648.8,3648.1,0.943]
[1753364194131,0.02069997,3648.7,3648.1,0.5102]
[1753364194337,0.02069997,3648.7,3648.1,0.04]
[1753364194338,2.74091476,3648.5,3648.1,0.04]
[1753364194648,2.74100265,3648.3,3648.1,0.04]
[1753364194848,4.618,3648.7,3648.1,0.04]
[1753364194849,0.58473305,3648.6,3648.1,0.04]
[1753364195182,4.619,3648.4,3648.1,0.04]
[1753364195332,2.74077768,3648.6,3648.1,0.04]
[1753364195682,2.74105829,3648.3,3648.1,0.04]
[1753364195846,0.02069997,3648.2,3648.1,0.04]
[1753364196176,3.25237776,3648.2,3648.1,0.04]
[1753364196511,4.615,3648.5,3648.1,2.78114223]
[1753364196679,0.5588,3649.2,3648.2,0.4702]
[1753364196848,4.615,3649.0,3648.2,0.903]
[1753364197167,1.22178761,3649.5,3648.2,0.903]
[1753364197168,3.4906,3649.5,3648.3,2.74093802]
[1753364197370,5.74026808,3649.3,3648.3,2.7409314]
[1753364197581,5.74026808,3649.3,3648.2,0.4702]
[1753364197582,0.73118761,3649.8,3648.5,0.8324]
[1753364197790,0.73118761,3650.0,3649.5,2.74008484]
[1753364197989,2.73944499,3650.4,3649.6,3.21016002]
[1753364198187,2.73958279,3650.2,3649.6,0.4702]
[1753364198414,2.73952175,3650.3,3649.6,3.2101637]
[1753364198568,0.02069997,3650.2,3649.7,0.8252]
[1753364198753,2.73955901,3650.3,3649.5,2.7400483]
[1753364198962,2.73955901,3650.3,3649.3,3.21045155]
[1753364199155,2.73986534,3649.9,3649.3,0.4702]
[1753364199352,2.73962047,3650.2,3649.5,2.74009192]
[1753364199590,4.615,3650.5,3649.6,0.4702]
[1753364199795,2.73948705,3650.4,3649.6,3.21017088]
[1753364200057,2.73951446,3650.3,3649.6,3.21017088]
[1753364200290,2.7790728,3650.9,3650.2,2.73950574]
[1753364200590,0.04,3650.9,3650.3,1.326395]
[1753364200891,0.04,3650.9,3650.4,0.903]
[1753364201094,0.04,3650.9,3650.5,0.0273935]
[1753364201391,0.04,3650.9,3650.6,0.4702]
[1753364201597,0.04,3650.9,3650.3,0.8288]
[1753364201760,2.73932335,3650.6,3650.3,0.8288]
[1753364202091,2.73912567,3650.8,3650.1,0.4702]
[1753364202301,2.73956773,3650.3,3649.8,0.7962]
[1753364202505,0.4906,3650.7,3649.9,0.02739801]
[1753364202671,2.77910643,3650.9,3650.1,2.73963076]
[1753364202996,2.73942109,3650.5,3649.9,0.903]
[1753364203199,0.04,3650.9,3649.9,0.4702]
[1753364203501,0.0682,3650.7,3649.3,0.826]
[1753364203698,2.73965096,3650.1,3649.3,3.56624091]
[1753364203853,0.1368,3650.0,3649.5,0.1368]
[1753364204197,0.77118761,3650.9,3649.5,0.1368]
[1753364204198,3.04,3650.9,3650.2,2.73951008]
[1753364204399,0.1368,3650.7,3650.3,0.4702]
[1753364204553,0.1368,3650.7,3650.4,0.4702]
[1753364204757,2.73936645,3650.5,3649.9,0.4702]
[1753364204958,2.77905684,3650.9,3650.2,2.73952104]
[1753364205157,0.1368,3650.6,3650.3,0.4702]
[1753364205367,2.73937031,3650.5,3650.1,0.1368]
[1753364205702,0.1368,3650.6,3650.1,0.607]
[1753364206201,2.8761254,3650.6,3650.1,0.607]
[1753364206408,0.1368,3650.6,3650.1,0.1368]
[1753364206567,2.87640088,3650.2,3649.6,0.4702]
[1753364206900,0.1368,3650.0,3649.5,0.1368]
[1753364207111,2.87654291,3650.0,3649.5,0.1368]
[1753364207426,0.02069997,3649.9,3649.3,0.826]
[1753364207713,2.87697646,3649.4,3649.1,0.001]
[1753364207923,0.02069997,3649.3,3649.1,0.001]
[1753364208218,0.58587998,3649.9,3649.1,0.001]
[1753364208219,2.87712664,3649.2,3649.1,0.001]
[1753364208371,0.98149997,3649.2,3648.1,0.04]
[1753364208712,0.4906,3649.1,3648.1,0.04]
[1753364208878,0.02069997,3649.0,3648.1,0.04]
[1753364209071,2.74100818,3648.3,3648.1,0.04]
[1753364209513,0.58587998,3648.8,3648.1,0.04]
[1753364209726,2.74092885,3648.4,3648.1,0.04]
[1753364209923,0.58587998,3648.8,3648.2,0.903]
[1753364210081,0.73234998,3649.3,3648.3,0.903]
[1753364210472,0.73234998,3649.3,3648.5,2.74080148]
[1753364210672,8.90790993,3649.5,3648.4,0.4702]
[1753364210673,0.02069997,3649.2,3648.4,0.4702]
[1753364210984,0.73234998,3649.5,3649.2,2.74027457]
[1753364211182,0.73234998,3649.6,3649.3,0.8985]
[1753364211388,0.73234998,3649.6,3649.4,0.4702]
[1753364211589,0.58587998,3649.8,3649.4,0.4702]
[1753364211590,0.73234998,3649.7,3649.6,2.7400263]
[1753364211784,2.73935945,3650.5,3649.6,2.7400263]
[1753364211785,0.73234998,3650.1,3649.6,0.8985]
[1753364211990,0.73234998,3650.0,3649.6,0.4283]
[1753364212294,0.73234998,3650.2,3649.7,3.21013305]
[1753364212500,0.73234998,3650.3,3650.1,0.7937]
[1753364212686,0.73234998,3650.4,3650.2,0.8985]
[1753364212891,0.73234998,3650.4,3650.2,3.63806792]
[1753364213214,0.73234998,3650.4,3650.3,3.20970086]
[1753364213396,0.73234998,3650.7,3650.4,2.73942581]
[1753364213601,0.73234998,3650.7,3650.5,2.73934237]
[1753364213798,0.73234998,3650.7,3650.6,2.73927573]
[1753364214114,0.77234998,3650.9,3650.8,2.73912567]
[1753364214286,1.45874093,3651.4,3650.8,2.73912567]
[1753364214287,0.73234998,3651.4,3651.3,2.73875058]
[1753364214488,0.73234998,3651.5,3651.4,2.73867557]
[1753364214716,0.73234998,3651.6,3651.5,2.73860057]
[1753364215029,0.73234998,3651.6,3650.8,3.50400724]
[1753364215030,3.0,3649.4,3646.2,2.74258131]
[1753364215312,30.0,3649.8,3646.3,0.4702]
[1753364215313,3.0,3648.3,3646.3,0.4702]
[1753364215510,0.02069997,3648.2,3646.4,0.4283]
[1753364215674,5.2956,3648.3,3646.6,3.0]
[1753364215675,8.03662859,3648.3,3646.6,3.0]
[1753364215870,4.805,3648.3,3646.8,0.7807]
[1753364216076,2.74115292,3648.1,3646.8,0.7807]
[1753364216271,3.47622686,3648.1,3646.8,0.7807]
[1753364216525,2.74184881,3647.2,3646.8,0.7807]
[1753364216690,2.70184881,3647.2,3646.8,0.7807]
[1753364216886,0.58801952,3647.9,3646.9,0.4702]
[1753364217088,1.07834646,3648.2,3646.9,0.49762054]
[1753364217417,2.7419288,3647.1,3646.8,0.7807]
[1753364217710,2.74204996,3647.0,3646.3,0.4702]
[1753364218119,2.74152867,3647.6,3646.3,0.4702]
[1753364218277,0.1368,3647.1,3646.5,0.1368]
[1753364218618,3.58774646,3648.2,3646.6,0.4976228]
[1753364218779,0.1368,3647.2,3646.7,0.5986]
[1753364218974,2.87865532,3647.2,3646.3,5.2838]
[1753364219294,0.1368,3647.2,3646.6,0.1368]
[1753364219718,0.1368,3647.2,3646.3,3.4618]
[1753364219719,0.02069997,3647.1,3646.3,0.4618]
[1753364220013,0.1368,3646.8,3646.2,3.943]
[1753364220215,0.1368,3646.8,3646.2,0.1368]
[1753364220429,0.1368,3647.1,3646.5,0.1368]
[1753364220599,0.73507394,3648.6,3647.0,3.7922]
[1753364220924,0.04,3648.9,3647.7,0.55]
[1753364221087,0.1768,3648.9,3648.3,0.7922]